bitfinex/quotes_BTCUSD_20230831
["timestamp","ask_amount","ask_price","bid_price","bid_amount"]
[1693491969716,0.033,27114.0,27113.0,1.04916946]
[1693491970358,0.003,27114.0,27113.0,1.04616946]
[1693491970571,0.007,27114.0,27113.0,1.08216946]
[1693491971410,0.007,27114.0,27113.0,0.96513616]
[1693491971619,0.007,27114.0,27113.0,0.98067317]
[1693491971846,0.007,27114.0,27113.0,1.15740998]
[1693491972051,0.007,27114.0,27113.0,0.93649033]
[1693491972670,0.007,27114.0,27113.0,0.81840129]
[1693491972888,0.007,27114.0,27113.0,0.64166448]
[1693491973344,0.007,27114.0,27113.0,0.87339984]
[1693491973555,0.007,27114.0,27113.0,1.00050547]
[1693491973760,0.007,27114.0,27113.0,0.65277302]
[1693491973996,0.007,27114.0,27113.0,0.76875011]
[1693491974226,0.007,27114.0,27113.0,0.94548692]
[1693491974411,0.007,27114.0,27113.0,1.23938137]
[1693491974822,0.007,27114.0,27113.0,1.06264456]
[1693491975240,0.007,27114.0,27113.0,0.76875011]
[1693491975502,0.007,27114.0,27113.0,1.07908123]
[1693491975754,0.007,27114.0,27113.0,0.76875011]
[1693491975976,0.007,27114.0,27113.0,0.28847783]
[1693491976187,0.002,27114.0,27113.0,0.57711667]
[1693491976822,0.002,27114.0,27113.0,0.48874447]
[1693491977081,0.01449553,27114.0,27113.0,0.073]
[1693491977516,0.0431643,27114.0,27113.0,0.073]
[1693491978789,0.0431643,27114.0,27113.0,0.036]
[1693491979000,0.02866877,27114.0,27110.0,0.0883722]
[1693491979207,0.05566877,27114.0,27113.0,0.003]
[1693491979665,0.06729455,27114.0,27113.0,0.003]
[1693491980261,0.05129455,27114.0,27113.0,0.001]
[1693491980677,0.23249455,27114.0,27113.0,0.003]
[1693491981731,0.232085,27114.0,27113.0,0.003]
[1693491981962,0.22086877,27114.0,27113.0,0.003]
[1693491982433,0.58854962,27114.0,27113.0,0.003]
[1693491982855,0.69734962,27114.0,27113.0,0.003]
[1693491983063,0.76908458,27114.0,27113.0,0.003]
[1693491985344,0.75808458,27114.0,27113.0,0.002]
[1693491985762,0.79708458,27114.0,27113.0,0.003]
[1693491985972,0.79708458,27114.0,27113.0,0.006]
[1693491986174,0.97308458,27114.0,27113.0,0.006]
[1693491986534,1.36008458,27114.0,27113.0,0.006]
[1693491986735,0.02,27113.0,27106.0,0.00099265]
[1693491986940,0.1088,27111.0,27106.0,0.00099265]
[1693491987144,0.67875319,27110.0,27106.0,0.00099265]
[1693491987378,0.164,27110.0,27106.0,0.00099265]
[1693491987578,0.2078,27113.0,27107.0,0.1088]
[1693491987579,0.02,27113.0,27107.0,0.1088]
[1693491987778,0.55168085,27113.0,27107.0,0.1088]
[1693491988203,0.67875319,27113.0,27107.0,0.1088]
[1693491988416,0.1088,27112.0,27106.0,0.00099265]
[1693491988622,0.01260307,27111.0,27106.0,0.30604206]
[1693491988844,0.32397541,27111.0,27106.0,0.30604206]
[1693491989444,0.17690307,27111.0,27106.0,0.30604206]
[1693491989646,0.32397541,27111.0,27106.0,0.30604206]
[1693491989895,0.22490307,27111.0,27106.0,0.31104206]
[1693491990301,0.22490307,27111.0,27106.0,0.39956495]
[1693491990726,0.68878085,27111.0,27106.0,0.00599265]
[1693491990940,0.1088,27109.0,27106.0,0.00599265]
[1693491991568,0.01389945,27108.0,27106.0,0.00599265]
[1693491991993,0.83585319,27111.0,27106.0,0.26990645]
[1693491992171,0.64078085,27111.0,27107.0,0.08258008]
[1693491992414,0.001,27109.0,27107.0,0.08258008]
[1693491992624,0.002,27109.0,27107.0,0.19138008]
[1693491992849,0.001,27109.0,27107.0,0.19138008]
[1693491993061,0.1643,27111.0,27108.0,0.0295468]
[1693491993468,0.1903,27111.0,27108.0,0.0295468]
[1693491993665,0.001,27109.0,27108.0,0.0295468]
[1693491994070,0.02862777,27110.0,27107.0,0.1088]
[1693491994275,0.001,27109.0,27108.0,0.28340466]
[1693491995142,0.001,27109.0,27108.0,0.39220466]
[1693491995349,0.001,27109.0,27108.0,0.1088]
[1693491995562,0.001,27109.0,27108.0,0.47848085]
[1693491995764,0.022,27111.0,27108.0,0.66764665]
[1693491995972,0.1545,27118.0,27110.0,0.1088]
[1693491996181,0.36768085,27117.0,27112.0,0.1088]
[1693491996390,0.36768085,27117.0,27113.0,0.27686488]
[1693491996608,0.1545,27116.0,27112.0,0.1088]
[1693491996818,0.1545,27120.0,27115.0,0.1088]
[1693491997025,0.1545,27120.0,27116.0,0.1088]
[1693491997477,0.037,27117.0,27116.0,0.1088]
[1693491999256,0.1585,27123.0,27116.0,0.37131332]
[1693491999472,0.036,27120.0,27118.0,0.1088]
[1693491999683,0.073,27120.0,27118.0,0.1088]
[1693491999917,0.036,27120.0,27118.0,0.1088]
[1693492000135,0.03081468,27122.0,27118.0,0.1088]
[1693492000361,0.1585,27123.0,27118.0,0.1088]
[1693492000580,0.1585,27123.0,27119.0,0.03710313]
[1693492000811,0.009,27120.0,27119.0,0.03710313]
[1693492001226,0.022,27120.0,27119.0,0.03710313]
[1693492001978,0.04381785,27120.0,27119.0,0.03710313]
[1693492002184,0.04381785,27120.0,27119.0,0.26702896]
[1693492002646,0.03081785,27120.0,27119.0,0.26702896]
[1693492002846,0.04381785,27120.0,27119.0,0.26902896]
[1693492003111,0.022,27120.0,27119.0,0.27002896]
[1693492005699,0.022,27120.0,27119.0,0.47948085]
[1693492005913,0.022,27120.0,27119.0,0.54993894]
[1693492006331,0.022,27120.0,27119.0,0.64993894]
[1693492006535,0.022,27120.0,27119.0,0.62993894]
[1693492006949,0.9968,27128.0,27119.0,0.62693894]
[1693492007156,1.14387234,27128.0,27123.0,0.1088]
[1693492007367,0.9968,27128.0,27123.0,0.1088]
[1693492007629,0.1604,27127.0,27123.0,0.1088]
[1693492009502,0.1604,27127.0,27124.0,0.22704216]
[1693492009908,0.01331287,27126.0,27123.0,0.1088]
[1693492010119,0.14707234,27126.0,27123.0,0.003]
[1693492010327,0.3422,27127.0,27123.0,0.006]
[1693492010534,0.01525203,27126.0,27123.0,0.003]
[1693492010953,0.17895203,27126.0,27124.0,0.003]
[1693492011363,0.17895203,27126.0,27123.0,0.22840737]
[1693492011771,0.21495203,27126.0,27123.0,0.22840737]
[1693492012207,0.21495203,27126.0,27124.0,0.003]
[1693492012394,0.21495203,27126.0,27123.0,0.22840737]
[1693492012826,0.01195588,27125.0,27123.0,0.28702811]
[1693492013032,0.01195588,27125.0,27123.0,0.28402811]
[1693492013244,0.01195588,27125.0,27123.0,0.28102811]
[1693492013470,0.01195588,27125.0,27124.0,0.006]
[1693492014157,0.01195588,27125.0,27124.0,0.003]
[1693492014369,0.04795588,27125.0,27124.0,0.003]
[1693492014913,0.01195588,27125.0,27123.0,0.05562074]
[1693492015125,0.04795588,27125.0,27124.0,0.003]
[1693492015336,0.08395588,27125.0,27124.0,0.003]
[1693492015541,0.04795588,27125.0,27124.0,0.003]
[1693492015967,0.08395588,27125.0,27124.0,0.006]
[1693492016849,0.11483082,27125.0,27124.0,0.006]
[1693492017501,0.10287494,27125.0,27124.0,0.23608703]
[1693492018307,0.10287494,27125.0,27124.0,0.51696955]
[1693492018714,0.072,27125.0,27124.0,0.51696955]
[1693492019126,0.072,27125.0,27124.0,0.66452155]
[1693492019337,0.036,27125.0,27124.0,0.66152155]
[1693492019746,0.003,27125.0,27124.0,0.68852155]
[1693492019964,0.1605,27131.0,27124.0,0.65852155]
[1693492020179,0.014,27125.0,27124.0,0.1840407]
[1693492020411,0.014,27125.0,27124.0,0.258352]
[1693492020617,0.1605,27131.0,27124.0,0.25733992]
[1693492020827,0.1605,27131.0,27128.0,0.1088]
[1693492021039,0.1605,27131.0,27129.0,0.1088]
[1693492021226,0.0309748,27130.0,27129.0,0.1088]
[1693492022732,0.0539748,27130.0,27129.0,0.1108]
[1693492023963,0.0539748,27130.0,27129.0,0.1138]
[1693492023964,0.0809748,27130.0,27129.0,0.1138]
[1693492031074,0.09447193,27130.0,27129.0,0.1138]
[1693492031295,0.0809748,27130.0,27129.0,0.1138]
[1693492032117,0.0959824,27130.0,27129.0,0.1138]
[1693492034274,0.0959824,27130.0,27129.0,1.17648284]
[1693492034479,0.0650076,27130.0,27129.0,1.17648284]
[1693492036415,0.0650076,27130.0,27129.0,0.005]
[1693492037049,0.09434209,27130.0,27129.0,0.005]
[1693492038260,0.07933449,27130.0,27129.0,0.005]
[1693492038473,0.55581534,27130.0,27129.0,0.005]
[1693492038683,0.63832087,27130.0,27129.0,0.005]
[1693492039088,0.81703591,27130.0,27129.0,0.005]
[1693492039335,0.88399591,27130.0,27129.0,0.005]
[1693492039530,0.88435591,27130.0,27129.0,0.005]
[1693492039722,0.85651591,27130.0,27129.0,0.002]
[1693492039930,0.88809591,27130.0,27124.0,0.00099573]
[1693492040143,0.1088,27127.0,27124.0,0.00099573]
[1693492040363,0.36768085,27126.0,27121.0,0.08828939]
[1693492040574,0.15932131,27125.0,27122.0,1.06291181]
[1693492040775,0.01224897,27125.0,27122.0,1.06291181]
[1693492040988,0.01224897,27125.0,27122.0,1.1512012]
[1693492041192,0.01224897,27125.0,27123.0,1.06291181]
[1693492042012,0.01224897,27125.0,27123.0,1.1512012]
[1693492042215,0.01224897,27125.0,27124.0,1.06291181]
[1693492043083,0.01724897,27125.0,27124.0,1.06291181]
[1693492043284,0.01524897,27125.0,27124.0,1.06291181]
[1693492043497,0.01224897,27125.0,27124.0,1.06291181]
[1693492043702,0.01424897,27125.0,27124.0,1.08491181]
[1693492044116,0.01724897,27125.0,27124.0,1.09491181]
[1693492046076,0.005,27125.0,27124.0,1.70008922]
[1693492046303,0.005,27125.0,27124.0,2.44501113]
[1693492046538,0.005,27125.0,27124.0,2.30527093]
[1693492047403,0.002,27125.0,27124.0,2.29527093]
[1693492048706,0.1508,27134.0,27124.0,2.27327093]
[1693492048920,0.13873438,27133.0,27130.0,0.1088]
[1693492049140,0.16640345,27133.0,27130.0,0.1088]
[1693492049359,0.13873438,27132.0,27130.0,0.1088]
[1693492050289,0.13873438,27132.0,27130.0,0.1118]
[1693492050536,0.13873438,27132.0,27130.0,0.1088]
[1693492050798,0.17473438,27132.0,27130.0,0.1118]
[1693492051034,0.05087528,27132.0,27130.0,0.1118]
[1693492051276,0.01484762,27131.0,27130.0,0.1118]
[1693492052012,0.01484762,27131.0,27130.0,0.1148]
[1693492052488,0.01484762,27131.0,27130.0,0.1088]
[1693492052691,0.03784762,27131.0,27130.0,0.1138]
[1693492052924,0.06384762,27131.0,27130.0,0.1138]
[1693492057058,0.06384762,27131.0,27130.0,0.005]
[1693492058943,0.049,27131.0,27130.0,0.005]
[1693492059237,0.049,27131.0,27130.0,0.43106983]
[1693492059452,0.049,27131.0,27130.0,0.47417681]
[1693492061292,0.049,27131.0,27130.0,0.58458783]
[1693492061558,0.049,27131.0,27130.0,1.02142641]
[1693492061778,0.049,27131.0,27130.0,2.08394727]
[1693492062209,0.08766323,27140.0,27130.0,3.28074727]
[1693492062438,0.16799764,27139.0,27138.0,0.1088]
[1693492062651,0.02949207,27139.0,27138.0,0.1088]
[1693492062853,0.1812,27142.0,27138.0,0.1088]
[1693492063069,0.1812,27142.0,27141.0,0.1088]
[1693492063279,0.31956793,27142.0,27141.0,0.1088]
[1693492063500,0.31956793,27142.0,27140.0,0.1088]
[1693492063757,0.13836793,27141.0,27140.0,0.1088]
[1693492064812,0.13836793,27141.0,27140.0,0.1118]
[1693492065888,0.2182,27142.0,27140.0,0.1118]
[1693492066094,0.2182,27142.0,27140.0,0.1098]
[1693492066095,0.15657593,27141.0,27140.0,0.1098]
[1693492066300,0.17657593,27141.0,27140.0,0.1118]
[1693492066515,0.038,27141.0,27140.0,0.1118]
[1693492066923,0.02,27141.0,27140.0,0.1108]
[1693492067140,0.02,27141.0,27140.0,0.1128]
[1693492067576,0.02,27141.0,27140.0,0.1108]
[1693492068861,0.038,27141.0,27140.0,0.1118]
[1693492069311,0.038,27141.0,27140.0,0.3832983]
[1693492069523,0.038,27141.0,27140.0,0.42162813]
[1693492069964,0.038,27141.0,27140.0,1.48390237]
[1693492070186,0.038,27141.0,27140.0,1.21240407]
[1693492070603,0.0516301,27141.0,27140.0,1.21240407]
[1693492071037,0.038,27141.0,27140.0,1.21240407]
[1693492072806,0.038,27141.0,27140.0,1.86651329]
[1693492073017,0.038,27141.0,27140.0,1.86653741]
[1693492073649,0.038,27141.0,27140.0,1.86553741]
[1693492073861,0.0208,27142.0,27140.0,1.86353741]
[1693492074064,0.0208,27142.0,27141.0,1.27394859]
[1693492074502,0.0208,27142.0,27141.0,1.53638818]
[1693492076055,0.0208,27142.0,27141.0,1.54438818]
[1693492076756,0.0208,27142.0,27141.0,1.55038818]
[1693492077880,0.0208,27143.0,27142.0,0.09568588]
[1693492077881,0.0172,27143.0,27142.0,0.09568588]
[1693492078087,0.0172,27143.0,27142.0,1.30989122]
[1693492078512,0.0172,27143.0,27142.0,0.24759286]
[1693492078936,0.0172,27143.0,27142.0,0.51958783]
[1693492079167,0.0302,27143.0,27142.0,0.52058783]
[1693492079385,0.0302,27143.0,27142.0,1.58279279]
[1693492080013,0.0172,27143.0,27142.0,1.58179279]
[1693492080241,0.0262,27143.0,27142.0,1.64279279]
[1693492080449,0.0322,27143.0,27142.0,2.71963137]
[1693492080656,0.0262,27143.0,27142.0,2.71963137]
[1693492080861,0.0262,27143.0,27142.0,2.77963137]
[1693492081885,0.0262,27143.0,27142.0,2.3320914]
[1693492082109,0.0262,27143.0,27142.0,2.29525282]
[1693492082313,0.0192,27143.0,27142.0,2.30625282]
[1693492082519,0.0202,27143.0,27142.0,2.30425282]
[1693492082941,0.0222,27143.0,27142.0,2.34125282]
[1693492083164,0.0192,27143.0,27142.0,2.25125282]
[1693492083377,0.0222,27143.0,27142.0,2.28825282]
[1693492084066,0.0222,27143.0,27142.0,1.24500496]
[1693492084291,0.0222,27143.0,27142.0,1.13620496]
[1693492084292,0.03412569,27143.0,27142.0,1.13620496]
[1693492084511,0.0638604,27143.0,27142.0,1.13620496]
[1693492085160,0.0638604,27143.0,27142.0,1.09920496]
[1693492085364,0.0588604,27143.0,27142.0,1.06220496]
[1693492085581,0.0638604,27143.0,27142.0,0.074]
[1693492086006,0.0638604,27143.0,27142.0,0.037]
[1693492086007,0.0618604,27143.0,27142.0,0.037]
[1693492086218,0.0778604,27143.0,27142.0,0.001]
[1693492086435,0.0798604,27143.0,27142.0,0.019]
[1693492086681,0.04893471,27143.0,27142.0,0.39582183]
[1693492086892,0.04893471,27143.0,27142.0,0.43540401]
[1693492087114,0.04993471,27143.0,27142.0,0.45540401]
[1693492088828,0.0202,27143.0,27142.0,0.45540401]
[1693492090129,0.0202,27143.0,27142.0,0.07758218]
[1693492090360,0.04819826,27143.0,27142.0,0.07758218]
[1693492091614,0.04819826,27143.0,27142.0,0.038]
[1693492091825,0.06079657,27143.0,27142.0,0.038]
[1693492093282,0.15699826,27143.0,27142.0,0.038]
[1693492093925,0.17267966,27143.0,27142.0,0.038]
[1693492096675,0.31125685,27143.0,27142.0,0.038]
[1693492097417,0.29557545,27143.0,27142.0,0.038]
[1693492097626,0.31557545,27143.0,27142.0,0.038]
[1693492099909,0.80300385,27143.0,27142.0,0.038]
[1693492100116,0.86912385,27143.0,27142.0,0.038]
[1693492100321,0.95614385,27143.0,27142.0,0.038]
[1693492100532,0.94822385,27143.0,27142.0,0.038]
[1693492100740,0.94768385,27143.0,27142.0,0.038]
[1693492100953,0.94732385,27143.0,27142.0,0.038]
[1693492101158,0.94996385,27143.0,27142.0,0.038]
[1693492101363,0.95146385,27143.0,27142.0,0.038]
[1693492101571,0.94984385,27143.0,27142.0,0.038]
[1693492101774,0.94904385,27143.0,27142.0,0.02]
[1693492101976,0.06,27141.0,27137.0,0.08826965]
[1693492102185,0.15857719,27140.0,27137.0,0.08826965]
[1693492102382,0.1088,27138.0,27137.0,0.08826965]
[1693492102597,0.1088,27138.0,27136.0,0.22166161]
[1693492102797,0.1088,27137.0,27136.0,0.13240448]
[1693492103211,0.1088,27137.0,27136.0,0.56816152]
[1693492103410,0.12143832,27137.0,27136.0,0.22055061]
[1693492103619,0.12143832,27137.0,27136.0,0.13240448]
[1693492103826,0.12143832,27137.0,27136.0,0.56815576]
[1693492104035,0.021,27138.0,27136.0,0.56815576]
[1693492104240,0.021,27138.0,27137.0,0.08817332]
[1693492104852,0.0108,27138.0,27137.0,0.08817332]
[1693492105065,0.0108,27138.0,27137.0,0.38598059]
[1693492105242,0.1512,27139.0,27137.0,0.38598059]
[1693492106426,0.038,27138.0,27137.0,0.38798059]
[1693492106639,0.04691201,27138.0,27137.0,0.45667303]
[1693492106979,0.02791201,27138.0,27137.0,0.45767303]
[1693492107518,0.02791201,27138.0,27137.0,0.09017332]
[1693492107716,0.04307859,27138.0,27137.0,0.09017332]
[1693492108378,0.04307859,27138.0,27137.0,0.002]
[1693492108579,0.04307859,27138.0,27136.0,0.2205778]
[1693492108910,0.06207859,27138.0,27137.0,0.004]
[1693492109740,0.04307859,27138.0,27136.0,0.08817332]
[1693492109946,0.06207859,27138.0,27136.0,0.08917332]
[1693492110150,0.08107859,27138.0,27137.0,0.001]
[1693492110355,0.06207859,27138.0,27137.0,0.001]
[1693492110553,0.04307859,27138.0,27136.0,0.08817332]
[1693492111466,0.01479155,27137.0,27135.0,0.2205778]
[1693492111766,0.02791201,27138.0,27135.0,0.08817332]
[1693492111980,0.02791201,27138.0,27134.0,0.2205778]
[1693492111981,0.1088,27136.0,27134.0,0.2205778]
[1693492112186,0.1088,27135.0,27133.0,0.2205778]
[1693492112394,0.1088,27135.0,27133.0,0.08817332]
[1693492113230,0.1088,27134.0,27132.0,0.00099168]
[1693492113441,0.1088,27133.0,27132.0,0.00099168]
[1693492113650,0.1088,27133.0,27131.0,0.08817332]
[1693492113651,0.1217662,27133.0,27131.0,0.08817332]
[1693492113857,0.1217662,27133.0,27130.0,0.2205778]
[1693492113858,0.1088,27132.0,27130.0,0.2205778]
[1693492114072,0.1088,27132.0,27130.0,0.08817332]
[1693492114508,0.1088,27132.0,27129.0,0.2205778]
[1693492114719,0.1088,27131.0,27128.0,0.2205778]
[1693492114932,0.12150442,27133.0,27128.0,0.08817332]
[1693492115389,0.12350442,27133.0,27132.0,0.037]
[1693492115600,0.14450442,27133.0,27132.0,0.037]
[1693492116028,0.14150442,27133.0,27128.0,0.08917332]
[1693492116241,0.01266939,27132.0,27128.0,0.08817332]
[1693492116446,0.01266939,27132.0,27128.0,0.003]
[1693492117967,0.01266939,27132.0,27129.0,0.12621394]
[1693492118800,0.04466939,27132.0,27129.0,0.12621394]
[1693492119256,0.04166939,27132.0,27129.0,0.12821394]
[1693492119462,0.07366939,27132.0,27129.0,0.13121394]
[1693492121455,0.01433614,27131.0,27129.0,0.13121394]
[1693492122549,0.032,27132.0,27130.0,0.1088]
[1693492122758,0.06,27139.0,27131.0,0.1088]
[1693492122973,0.36768085,27140.0,27135.0,0.1088]
[1693492123185,0.02956805,27138.0,27136.0,0.1088]
[1693492123596,0.36768085,27142.0,27136.0,0.1088]
[1693492123802,0.01359919,27141.0,27136.0,0.34524345]
[1693492124013,0.01359919,27141.0,27137.0,0.11997296]
[1693492124014,0.38128004,27141.0,27137.0,0.11997296]
[1693492125274,0.026,27139.0,27137.0,0.11997296]
[1693492126088,0.026,27139.0,27137.0,0.16453026]
[1693492126267,0.026,27139.0,27137.0,0.16753026]
[1693492126700,0.026,27139.0,27138.0,0.22727062]
[1693492127080,0.063,27139.0,27138.0,0.22727062]
[1693492127287,0.037,27139.0,27138.0,0.22727062]
[1693492127915,0.037,27139.0,27137.0,0.003]
[1693492128143,0.04892133,27139.0,27137.0,0.003]
[1693492128347,0.01192133,27139.0,27136.0,0.3256]
[1693492128550,0.01192133,27139.0,27136.0,0.35816]
[1693492128751,0.04892133,27139.0,27138.0,0.003]
[1693492129162,0.01192133,27139.0,27136.0,0.3256]
[1693492129400,0.01192133,27139.0,27137.0,0.003]
[1693492129401,0.03892133,27139.0,27137.0,0.003]
[1693492129531,0.04892133,27139.0,27136.0,0.3286]
[1693492129750,0.04892133,27139.0,27137.0,0.03286]
[1693492129960,0.07592133,27139.0,27138.0,0.003]
[1693492130161,0.01192133,27139.0,27136.0,0.3256]
[1693492130371,0.01192133,27139.0,27137.0,0.03256]
[1693492130581,0.03892133,27139.0,27137.0,0.03556]
[1693492131431,0.027,27139.0,27137.0,0.03556]
[1693492131627,0.027,27139.0,27138.0,0.26765475]
[1693492131860,0.064,27139.0,27138.0,0.26765475]
[1693492132050,0.037,27139.0,27138.0,0.26765475]
[1693492132208,0.064,27139.0,27138.0,0.27065475]
[1693492132407,0.027,27139.0,27138.0,0.27065475]
[1693492132870,0.064,27139.0,27138.0,0.27365475]
[1693492133636,0.064,27139.0,27138.0,0.006]
[1693492135728,0.07537148,27139.0,27138.0,0.006]
[1693492136893,0.1050451,27139.0,27138.0,0.006]
[1693492145368,0.09367362,27139.0,27138.0,0.006]
[1693492146607,0.09367362,27139.0,27138.0,0.25400625]
[1693492147272,0.09367362,27139.0,27138.0,0.006]
[1693492149569,0.10889404,27139.0,27138.0,0.006]
[1693492152459,0.09367362,27139.0,27138.0,0.006]
[1693492153749,0.09367362,27139.0,27138.0,0.50476085]
[1693492154172,0.09367362,27139.0,27138.0,0.54159943]
[1693492154390,0.064,27139.0,27138.0,0.54159943]
[1693492154604,0.037,27139.0,27138.0,0.53859943]
[1693492154788,0.037,27139.0,27138.0,0.63227243]
[1693492155041,0.0172,27143.0,27138.0,0.62927243]
[1693492155253,0.0172,27143.0,27142.0,0.1088]
[1693492156901,0.0172,27143.0,27142.0,0.1148]
[1693492158167,0.0172,27143.0,27142.0,0.1208]
[1693492161683,0.0172,27143.0,27142.0,0.43261343]
[1693492168382,0.0172,27143.0,27142.0,0.52081874]
[1693492168600,0.0172,27143.0,27142.0,0.62984075]
[1693492170416,0.0172,27143.0,27142.0,0.31802732]
[1693492170614,0.0172,27143.0,27142.0,0.10020531]
[1693492170615,0.03120278,27143.0,27142.0,0.10020531]
[1693492170779,0.03120278,27143.0,27142.0,0.012]
[1693492171181,0.0469592,27143.0,27142.0,0.012]
[1693492171579,0.0469592,27143.0,27142.0,0.38220487]
[1693492171788,0.0469592,27143.0,27142.0,0.48522721]
[1693492174333,0.0469592,27143.0,27142.0,0.3970219]
[1693492174758,0.0469592,27143.0,27142.0,0.31202765]
[1693492174938,0.0469592,27143.0,27142.0,1.11061392]
[1693492175178,0.0469592,27143.0,27142.0,1.02240861]
[1693492175387,0.0172,27143.0,27142.0,1.02240861]
[1693492175603,0.0172,27143.0,27142.0,1.1106164]
[1693492176011,0.0172,27143.0,27142.0,1.02240861]
[1693492176139,0.0172,27143.0,27142.0,0.67499348]
[1693492176355,0.0172,27143.0,27142.0,0.54268552]
[1693492177196,0.0172,27143.0,27142.0,0.45447937]
[1693492179334,0.0172,27143.0,27142.0,0.22382234]
[1693492179542,0.0172,27143.0,27142.0,0.55012406]
[1693492179741,0.0172,27143.0,27142.0,0.55131751]
[1693492180174,0.0172,27143.0,27142.0,0.58913231]
[1693492180383,0.0172,27143.0,27142.0,0.51599242]
[1693492180590,0.0172,27143.0,27142.0,0.22382234]
[1693492182095,0.0172,27143.0,27142.0,0.51421802]
[1693492182251,0.0172,27143.0,27142.0,0.22382234]
[1693492183047,0.0172,27143.0,27142.0,0.45254873]
[1693492183242,0.0172,27143.0,27142.0,0.22382234]
[1693492183645,0.0172,27143.0,27142.0,0.51315712]
[1693492187330,0.0172,27143.0,27142.0,1.10770934]
[1693492187533,0.0172,27143.0,27142.0,1.62423794]
[1693492188054,0.0172,27143.0,27142.0,1.79464856]
[1693492188486,0.0172,27143.0,27142.0,1.79364856]
[1693492188929,0.0192,27143.0,27142.0,1.82564856]
[1693492189130,0.0192,27143.0,27142.0,1.7576606]
[1693492189334,0.0222,27143.0,27142.0,1.7303406]
[1693492189533,0.0222,27143.0,27142.0,1.86267113]
[1693492189740,0.0222,27143.0,27142.0,1.68626051]
[1693492189956,0.0222,27143.0,27142.0,1.86267113]
[1693492190208,0.0208,27155.0,27152.0,0.16]
[1693492190431,0.0208,27155.0,27152.0,2.0147717]
[1693492190654,0.0208,27155.0,27152.0,2.01711095]
[1693492190858,0.0208,27155.0,27154.0,0.548]
[1693492191076,0.0208,27155.0,27154.0,1.5243791]
[1693492191285,0.0208,27155.0,27154.0,2.61002629]
[1693492191498,0.0208,27155.0,27154.0,2.65643353]
[1693492191705,0.0208,27155.0,27154.0,2.70053328]
[1693492192347,0.0208,27155.0,27154.0,2.73753328]
[1693492193191,0.0208,27155.0,27154.0,2.51703453]
[1693492193821,0.0208,27155.0,27154.0,2.7372124]
[1693492194026,0.0208,27155.0,27154.0,2.51703453]
[1693492194848,0.0208,27155.0,27154.0,2.55403453]
[1693492195055,0.0208,27155.0,27154.0,2.57483453]
[1693492196043,0.0208,27155.0,27154.0,2.11483453]
[1693492196239,0.0208,27155.0,27154.0,2.6794368]
[1693492197908,0.0208,27155.0,27154.0,2.41483453]
[1693492198858,0.0208,27155.0,27154.0,2.67862826]
[1693492199061,0.0208,27155.0,27154.0,2.41483453]
[1693492199304,0.0208,27155.0,27154.0,2.67859983]
[1693492199965,0.0208,27155.0,27154.0,2.73859983]
[1693492200219,0.0208,27158.0,27155.0,0.04159999]
[1693492200419,0.0208,27158.0,27157.0,0.1088]
[1693492200553,0.0208,27158.0,27157.0,1.97362729]
[1693492200954,0.0208,27158.0,27157.0,1.60594644]
[1693492201200,0.0208,27158.0,27157.0,1.7169424]
[1693492201526,0.0208,27158.0,27157.0,1.60594644]
[1693492201737,0.0208,27158.0,27157.0,1.74572589]
[1693492202373,0.0208,27158.0,27157.0,1.78272589]
[1693492202796,0.0208,27158.0,27157.0,2.00245631]
[1693492204258,0.0208,27158.0,27157.0,2.00246062]
[1693492204675,0.0208,27158.0,27157.0,2.37014147]
[1693492207783,0.0208,27158.0,27157.0,2.32604182]
[1693492207993,0.0208,27158.0,27157.0,2.32603733]
[1693492208425,0.0208,27158.0,27157.0,2.54576775]
[1693492208550,0.0208,27158.0,27157.0,2.37013698]
[1693492209383,0.0208,27158.0,27157.0,2.45040656]
[1693492209590,0.0208,27158.0,27157.0,2.6698808]
[1693492209789,0.0208,27158.0,27157.0,2.45040656]
[1693492210054,0.0208,27160.0,27159.0,0.61039999]
[1693492210287,0.0208,27166.0,27162.0,0.04159999]
[1693492210529,0.0208,27166.0,27165.0,0.1088]
[1693492210811,0.1742,27166.0,27165.0,1.17035805]
[1693492211695,0.1742,27166.0,27165.0,1.06155805]
[1693492212505,0.51036743,27166.0,27165.0,1.06155805]
[1693492212708,0.283,27166.0,27161.0,1.06155805]
[1693492212908,0.283,27166.0,27160.0,0.08875901]
[1693492212909,0.14707234,27165.0,27162.0,1.06155805]
[1693492213107,0.51248664,27166.0,27160.0,0.00098004]
[1693492213108,0.51248664,27166.0,27160.0,0.14835104]
[1693492213308,0.55075898,27166.0,27160.0,0.25715104]
[1693492213514,0.55075898,27166.0,27160.0,0.34493001]
[1693492213721,0.55075898,27166.0,27165.0,0.037]
[1693492213957,0.42368664,27166.0,27165.0,0.037]
[1693492214158,0.42362004,27166.0,27160.0,0.34493001]
[1693492214358,0.32120574,27166.0,27161.0,0.1088]
[1693492214642,0.43737965,27166.0,27165.0,0.038]
[1693492215091,0.43737965,27166.0,27161.0,0.1088]
[1693492215092,0.22722177,27165.0,27161.0,0.1088]
[1693492215429,0.22722177,27165.0,27162.0,0.07366109]
[1693492215625,0.37872177,27165.0,27162.0,0.07366109]
[1693492216313,0.1515,27165.0,27164.0,0.1088]
[1693492216995,0.18144004,27165.0,27164.0,1.17016699]
[1693492217122,0.18144004,27165.0,27164.0,1.3007442]
[1693492217327,0.1515,27165.0,27164.0,1.3007442]
[1693492218340,0.18144004,27165.0,27164.0,1.3007442]
[1693492218536,0.18144004,27165.0,27164.0,1.3377442]
[1693492218960,0.18144004,27165.0,27164.0,1.3007442]
[1693492219159,0.18144004,27165.0,27164.0,1.3377442]
[1693492219340,0.18144004,27165.0,27164.0,1.3747442]
[1693492219536,0.18144004,27165.0,27164.0,1.3377442]
[1693492219764,0.18144004,27165.0,27164.0,1.3747442]
[1693492220087,0.09213921,27165.0,27164.0,1.3747442]
[1693492220641,0.09213921,27165.0,27164.0,1.3377442]
[1693492220847,0.09213921,27165.0,27164.0,1.3747442]
[1693492222490,0.02994004,27165.0,27164.0,1.3747442]
[1693492223163,0.02994004,27165.0,27164.0,1.46252317]
[1693492223575,0.02994004,27165.0,27164.0,1.3747442]